[Event "SS Manhem Chess Week 2019 GM and IM tournaments"]
[Site "Molnlycke kulturhus, Biblioteksgatan 2, Molnlycke, Sweden"]
[Date "2019.08.13"]
[Round "5.6"]
[White "Borsuk, Konstantin"]
[Black "Kucuksari, Kaan"]
[Result "0-1"]
[TimeControl "90 minutes for 40 moves + 30 minutes for the rest of the game + 30 seconds per move from move one."]
[WhiteTitle "FM"]
[BlackTitle "FM"]
[WhiteFideId "14113406"]
[BlackFideId "6380166"]
[WhiteElo "2372"]
[BlackElo "2286"]

1. d4 {[%clk 01:30:57]} {[%emt 00:00:02]} d5 {[%clk 01:27:06]} {[%emt
00:03:55]} 2. c4 {[%clk 01:31:14]} {[%emt 00:00:12]} c6 {[%clk 01:27:34]}
{[%emt 00:00:03]} 3. Nc3 {[%clk 01:31:19]} {[%emt 00:00:25]} Nf6 {[%clk
01:27:58]} {[%emt 00:00:06]} 4. e3 {[%clk 01:30:32]} {[%emt 00:01:16]} e6
{[%clk 01:28:10]} {[%emt 00:00:18]} 5. Nf3 {[%clk 01:30:44]} {[%emt 00:00:18]}
Nbd7 {[%clk 01:28:34]} {[%emt 00:00:07]} 6. Qc2 {[%clk 01:30:48]} {[%emt
00:00:25]} Bd6 {[%clk 01:29:00]} {[%emt 00:00:05]} 7. Be2 {[%clk 01:30:32]}
{[%emt 00:00:46]} O-O {[%clk 01:26:31]} {[%emt 00:02:59]} 8. O-O {[%clk
01:26:27]} {[%emt 00:04:35]} dxc4 {[%clk 01:26:48]} {[%emt 00:00:14]} 9. Bxc4
{[%clk 01:26:17]} {[%emt 00:00:39]} b5 {[%clk 01:27:13]} {[%emt 00:00:05]} 10.
Be2 {[%clk 01:24:59]} {[%emt 00:01:48]} Bb7 {[%clk 01:27:37]} {[%emt 00:00:07]}
11. Rd1 {[%clk 01:18:11]} {[%emt 00:07:18]} Qe7 {[%clk 01:27:34]} {[%emt
00:00:34]} 12. e4 {[%clk 01:13:15]} {[%emt 00:05:25]} e5 {[%clk 01:27:58]}
{[%emt 00:00:06]} 13. g3 {[%clk 01:05:11]} {[%emt 00:08:33]} Rad8 {[%clk
01:19:46]} {[%emt 00:08:43]} 14. a3 {[%clk 00:52:16]} {[%emt 00:13:25]} Rfe8
{[%clk 01:17:42]} {[%emt 00:02:34]} 15. Bg5 {[%clk 00:43:21]} {[%emt 00:09:24]}
exd4 {[%clk 01:03:33]} {[%emt 00:14:40]} 16. Nxd4 {[%clk 00:41:26]} {[%emt
00:02:25]} Be5 {[%clk 01:00:08]} {[%emt 00:03:56]} 17. Nf5 {[%clk 00:29:17]}
{[%emt 00:12:39]} Qf8 {[%clk 00:51:36]} {[%emt 00:09:02]} 18. f3 {[%clk
00:21:32]} {[%emt 00:08:15]} a6 {[%clk 00:47:52]} {[%emt 00:04:14]} 19. Be3
{[%clk 00:19:35]} {[%emt 00:02:27]} g6 {[%clk 00:45:36]} {[%emt 00:02:46]} 20.
Bh6 {[%clk 00:16:09]} {[%emt 00:03:55]} Qc5+ {[%clk 00:45:46]} {[%emt
00:00:20]} 21. Be3 {[%clk 00:16:33]} {[%emt 00:00:06]} Qf8 {[%clk 00:46:06]}
{[%emt 00:00:10]} 22. Nh6+ {[%clk 00:15:14]} {[%emt 00:01:50]} Kg7 {[%clk
00:44:55]} {[%emt 00:01:42]} 23. g4 {[%clk 00:09:43]} {[%emt 00:06:00]} Qe7
{[%clk 00:36:03]} {[%emt 00:09:22]} 24. Bf1 {[%clk 00:07:15]} {[%emt 00:02:58]}
c5 {[%clk 00:31:24]} {[%emt 00:05:09]} 25. Qf2 {[%clk 00:01:58]} {[%emt
00:05:47]} b4 {[%clk 00:22:07]} {[%emt 00:09:48]} 26. axb4 {[%clk 00:01:09]}
{[%emt 00:01:19]} cxb4 {[%clk 00:22:30]} {[%emt 00:00:07]} 27. Na4 {[%clk
00:00:42]} {[%emt 00:00:56]} Bd6 {[%clk 00:18:42]} {[%emt 00:04:18]} 28. Bg2
{[%clk 00:00:34]} {[%emt 00:00:38]} Bc6 {[%clk 00:17:17]} {[%emt 00:01:55]} 29.
Nxf7 {[%clk 00:00:43]} {[%emt 00:00:21]} Kxf7 {[%clk 00:15:34]} {[%emt
00:02:12]} 30. Qh4 {[%clk 00:00:41]} {[%emt 00:00:33]} Bxa4 {[%clk 00:13:01]}
{[%emt 00:03:04]} 31. Rxa4 {[%clk 00:01:00]} {[%emt 00:00:11]} Bc5 {[%clk
00:12:50]} {[%emt 00:00:40]} 32. Qf2 {[%clk 00:00:59]} {[%emt 00:00:31]} Bxe3
{[%clk 00:03:36]} {[%emt 00:09:44]} 33. Qxe3 {[%clk 00:01:27]} {[%emt
00:00:02]} Qc5 {[%clk 00:03:51]} {[%emt 00:00:16]} 34. Re1 {[%clk 00:00:47]}
{[%emt 00:01:09]} Nd5 {[%clk 00:01:04]} {[%emt 00:03:17]} 35. Qf2 {[%clk
00:00:38]} {[%emt 00:00:39]} Qxf2+ {[%clk 00:01:07]} {[%emt 00:00:27]} 36. Kxf2
{[%clk 00:01:06]} {[%emt 00:00:02]} Nc5 {[%clk 00:01:20]} {[%emt 00:00:17]} 0-1

[Event "SS Manhem Chess Week 2019 GM and IM tournaments"]
[Site "Molnlycke kulturhus, Biblioteksgatan 2, Molnlycke, Sweden"]
[Date "2019.08.13"]
[Round "5.8"]
[White "Pham, Bich Ngoc"]
[Black "Ornstein, Axel"]
[Result "1-0"]
[TimeControl "90 minutes for 40 moves + 30 minutes for the rest of the game + 30 seconds per move from move one."]
[WhiteTitle "WIM"]
[BlackTitle "IM"]
[WhiteFideId "12401285"]
[BlackFideId "1700111"]
[WhiteElo "2176"]
[BlackElo "2311"]

1. f4 {[%clk 01:30:53]} {[%emt 00:00:05]} d5 {[%clk 01:30:54]} {[%emt
00:00:06]} 2. Nf3 {[%clk 01:31:17]} {[%emt 00:00:06]} Nf6 {[%clk 01:31:18]}
{[%emt 00:00:06]} 3. g3 {[%clk 01:31:40]} {[%emt 00:00:07]} Bf5 {[%clk
01:31:42]} {[%emt 00:00:07]} 4. Bg2 {[%clk 01:31:48]} {[%emt 00:00:22]} e6
{[%clk 01:32:05]} {[%emt 00:00:06]} 5. d3 {[%clk 01:31:58]} {[%emt 00:00:20]}
h6 {[%clk 01:32:29]} {[%emt 00:00:06]} 6. O-O {[%clk 01:29:51]} {[%emt
00:02:37]} Nbd7 {[%clk 01:30:36]} {[%emt 00:02:23]} 7. e3 {[%clk 01:27:38]}
{[%emt 00:02:43]} c6 {[%clk 01:23:54]} {[%emt 00:07:13]} 8. Qe2 {[%clk
01:27:06]} {[%emt 00:01:01]} Bc5 {[%clk 01:23:56]} {[%emt 00:00:27]} 9. Nc3
{[%clk 01:26:11]} {[%emt 00:01:25]} Bh7 {[%clk 01:23:37]} {[%emt 00:00:48]} 10.
h3 {[%clk 01:23:16]} {[%emt 00:03:25]} Qe7 {[%clk 01:20:32]} {[%emt 00:03:35]}
11. Kh2 {[%clk 01:23:23]} {[%emt 00:00:22]} Bb4 {[%clk 01:14:34]} {[%emt
00:06:28]} 12. Bd2 {[%clk 01:09:19]} {[%emt 00:14:35]} e5 {[%clk 01:14:24]}
{[%emt 00:00:40]} 13. fxe5 {[%clk 01:07:13]} {[%emt 00:02:36]} Nxe5 {[%clk
01:14:52]} {[%emt 00:00:02]} 14. Nxe5 {[%clk 01:06:48]} {[%emt 00:00:55]} Qxe5
{[%clk 01:15:18]} {[%emt 00:00:04]} 15. Nxd5 {[%clk 01:06:38]} {[%emt
00:00:41]} Nh5 {[%clk 01:10:47]} {[%emt 00:05:01]} 16. Qf2 {[%clk 00:46:13]}
{[%emt 00:20:55]} Bxd2 {[%clk 01:09:54]} {[%emt 00:01:23]} 17. Qxf7+ {[%clk
00:45:18]} {[%emt 00:01:25]} Kd8 {[%clk 01:10:23]} 18. Qxb7 {[%clk 00:40:00]}
{[%emt 00:05:49]} Rb8 {[%clk 01:09:02]} {[%emt 00:01:51]} 19. Qxc6 {[%clk
00:39:54]} {[%emt 00:00:36]} Rc8 {[%clk 00:53:11]} {[%emt 00:16:20]} 20. Qb7
{[%clk 00:39:16]} {[%emt 00:01:07]} Nxg3 {[%clk 00:53:25]} {[%emt 00:00:17]} 21.
Rf7 {[%clk 00:35:10]} {[%emt 00:04:36]} Bf5 {[%clk 00:53:49]} {[%emt 00:00:06]}
22. Qe7+ {[%clk 00:26:21]} {[%emt 00:09:20]} Qxe7 {[%clk 00:53:58]} {[%emt
00:00:21]} 23. Nxe7 {[%clk 00:23:27]} {[%emt 00:03:24]} Rxc2 {[%clk 00:50:36]}
{[%emt 00:03:53]} 24. Kxg3 {[%clk 00:21:47]} {[%emt 00:02:09]} Bd7 {[%clk
00:50:30]} {[%emt 00:00:36]} 25. Nd5 {[%clk 00:18:52]} {[%emt 00:03:26]} g5 26.
Rf2 {[%clk 00:18:52]} 1-0

[Event "SS Manhem Chess Week 2019 GM and IM tournaments"]
[Site "Molnlycke kulturhus, Biblioteksgatan 2, Molnlycke, Sweden"]
[Date "2019.08.13"]
[Round "5.9"]
[White "Renman, Nils-Gustaf"]
[Black "Hill, Alistair"]
[Result "1/2-1/2"]
[TimeControl "90 minutes for 40 moves + 30 minutes for the rest of the game + 30 seconds per move from move one."]
[WhiteTitle "IM"]
[WhiteFideId "1700367"]
[BlackFideId "432407"]
[WhiteElo "2346"]
[BlackElo "2224"]

1. d4 {[%clk 01:30:57]} {[%emt 00:00:02]} Nf6 {[%clk 01:26:17]} {[%emt
00:04:43]} 2. Nf3 {[%clk 01:31:11]} {[%emt 00:00:16]} g6 {[%clk 01:25:57]}
{[%emt 00:00:51]} 3. c4 {[%clk 01:31:37]} {[%emt 00:00:05]} Bg7 {[%clk
01:26:13]} {[%emt 00:00:14]} 4. Nc3 {[%clk 01:32:01]} {[%emt 00:00:05]} d5
{[%clk 01:26:37]} {[%emt 00:00:06]} 5. cxd5 {[%clk 01:32:27]} {[%emt 00:00:05]}
Nxd5 {[%clk 01:27:02]} {[%emt 00:00:04]} 6. e4 {[%clk 01:32:53]} {[%emt
00:00:04]} Nxc3 {[%clk 01:27:26]} {[%emt 00:00:06]} 7. bxc3 {[%clk 01:33:18]}
{[%emt 00:00:05]} c5 {[%clk 01:27:51]} {[%emt 00:00:05]} 8. Be3 {[%clk
01:33:42]} {[%emt 00:00:06]} Qa5 {[%clk 01:27:30]} {[%emt 00:00:51]} 9. Qd2
{[%clk 01:34:04]} {[%emt 00:00:08]} O-O {[%clk 01:27:48]} {[%emt 00:00:12]} 10.
Rb1 {[%clk 01:34:23]} {[%emt 00:00:11]} b6 {[%clk 01:27:53]} {[%emt 00:00:25]}
11. Rb5 {[%clk 01:27:25]} {[%emt 00:07:28]} Qa4 {[%clk 01:27:29]} {[%emt
00:00:54]} 12. Rb3 {[%clk 01:27:49]} {[%emt 00:00:06]} Ba6 {[%clk 01:23:49]}
{[%emt 00:04:10]} 13. Bxa6 {[%clk 01:26:47]} {[%emt 00:01:32]} Qxa6 {[%clk
01:21:16]} {[%emt 00:03:03]} 14. d5 {[%clk 01:22:11]} {[%emt 00:05:06]} Nd7
{[%clk 01:15:38]} {[%emt 00:06:08]} 15. Qc2 {[%clk 01:11:51]} {[%emt 00:10:50]}
c4 {[%clk 00:45:20]} {[%emt 00:30:49]} 16. Rb1 {[%clk 01:11:47]} {[%emt
00:00:33]} Qa5 {[%clk 00:41:56]} {[%emt 00:03:55]} 17. O-O {[%clk 01:11:36]}
{[%emt 00:00:40]} Rfc8 {[%clk 00:35:54]} {[%emt 00:06:31]} 18. Nd4 {[%clk
01:10:04]} {[%emt 00:02:02]} Ne5 {[%clk 00:28:20]} {[%emt 00:08:06]} 19. h3
{[%clk 01:08:30]} {[%emt 00:02:04]} Kf8 {[%clk 00:25:03]} {[%emt 00:03:47]} 20.
a4 {[%clk 01:05:39]} {[%emt 00:03:20]} Nd3 {[%clk 00:25:05]} {[%emt 00:00:28]}
21. Rb5 {[%clk 01:03:54]} {[%emt 00:02:16]} Qa6 {[%clk 00:25:33]} {[%emt
00:00:02]} 22. Nc6 {[%clk 01:03:40]} {[%emt 00:00:43]} Qb7 {[%clk 00:19:55]}
{[%emt 00:06:09]} 23. Rfb1 {[%clk 00:56:22]} {[%emt 00:07:48]} e6 {[%clk
00:16:33]} {[%emt 00:03:52]} 24. a5 {[%clk 00:55:36]} {[%emt 00:01:17]} exd5
{[%clk 00:16:58]} {[%emt 00:00:05]} 25. exd5 {[%clk 00:55:50]} {[%emt
00:00:16]} Qd7 {[%clk 00:16:57]} {[%emt 00:00:30]} 26. axb6 {[%clk 00:46:32]}
{[%emt 00:09:49]} axb6 {[%clk 00:17:25]} {[%emt 00:00:02]} 27. Bxb6 {[%clk
00:45:22]} {[%emt 00:01:40]} Re8 {[%clk 00:12:11]} {[%emt 00:05:44]} 28. Be3
{[%clk 00:34:03]} {[%emt 00:11:48]} Kg8 {[%clk 00:10:42]} {[%emt 00:02:00]} 29.
Qd2 {[%clk 00:26:38]} {[%emt 00:07:55]} Qd6 {[%clk 00:09:19]} {[%emt 00:01:53]}
30. Nb4 {[%clk 00:22:35]} {[%emt 00:04:33]} Nxb4 {[%clk 00:04:31]} {[%emt
00:05:18]} 31. R5xb4 {[%clk 00:22:21]} {[%emt 00:00:44]} Rec8 {[%clk 00:04:35]}
{[%emt 00:00:26]} 32. Rb5 {[%clk 00:20:39]} {[%emt 00:02:12]} Rd8 {[%clk
00:04:07]} {[%emt 00:00:58]} 33. Qe2 {[%clk 00:16:16]} {[%emt 00:04:54]} Rac8
{[%clk 00:03:04]} {[%emt 00:01:33]} 34. Qf3 {[%clk 00:14:28]} {[%emt 00:02:17]}
Rd7 {[%clk 00:02:49]} {[%emt 00:00:45]} 35. Bf4 {[%clk 00:07:39]} {[%emt
00:07:18]} Qf6 {[%clk 00:03:10]} {[%emt 00:00:10]} 36. Rb8 {[%clk 00:06:38]}
{[%emt 00:01:32]} Rdd8 {[%clk 00:03:25]} {[%emt 00:00:15]} 37. Rxc8 {[%clk
00:06:29]} {[%emt 00:00:38]} Rxc8 {[%clk 00:03:54]} {[%emt 00:00:01]} 38. d6
{[%clk 00:01:36]} {[%emt 00:05:23]} Rd8 {[%clk 00:03:43]} {[%emt 00:00:40]} 39.
Rd1 {[%clk 00:01:34]} {[%emt 00:00:32]} g5 {[%clk 00:02:30]} {[%emt 00:01:42]}
40. Be3 {[%clk 00:01:49]} {[%emt 00:00:15]} Qxf3 {[%clk 00:02:54]} {[%emt
00:00:06]} 41. gxf3 {[%clk 00:02:18]} {[%emt 00:00:02]} Rd7 {[%clk 00:02:45]}
{[%emt 00:00:40]} 42. Bxg5 {[%clk 00:23:39]} {[%emt 00:09:09]} Bxc3 {[%clk
00:32:34]} {[%emt 00:00:41]} 43. Bf4 {[%clk 00:21:54]} {[%emt 00:02:15]} Bb2
{[%clk 00:24:54]} {[%emt 00:08:10]} 44. Rd5 {[%clk 00:19:50]} {[%emt 00:02:34]}
Ba3 {[%clk 00:20:12]} {[%emt 00:05:12]} 45. Ra5 {[%clk 00:15:59]} {[%emt
00:04:21]} Bb4 {[%clk 00:20:39]} {[%emt 00:00:02]} 46. Rb5 {[%clk 00:16:07]}
{[%emt 00:00:21]} Ba3 {[%clk 00:21:07]} {[%emt 00:00:02]} 47. Ra5 {[%clk
00:09:50]} {[%emt 00:06:48]} Bb4 {[%clk 00:21:25]} {[%emt 00:00:12]} 48. Rb5
{[%clk 00:10:02]} {[%emt 00:00:17]} Ba3 {[%clk 00:21:29]} {[%emt 00:00:26]} 49.
Ra5 {[%emt 00:00:22]} 1/2-1/2

[Event "SS Manhem Chess Week 2019 GM and IM tournaments"]
[Site "Molnlycke kulturhus, Biblioteksgatan 2, Molnlycke, Sweden"]
[Date "2019.08.13"]
[Round "5.10"]
[White "Rydstrom, Tom"]
[Black "Malmstig, Erik"]
[Result "1-0"]
[TimeControl "90 minutes for 40 moves + 30 minutes for the rest of the game + 30 seconds per move from move one."]
[WhiteTitle "FM"]
[BlackTitle "FM"]
[WhiteFideId "1714830"]
[BlackFideId "1702866"]
[WhiteElo "2314"]
[BlackElo "2335"]

1. e4 {[%clk 01:25:30]} {[%emt 00:03:10]} c5 {[%clk 01:30:53]} {[%emt
00:00:07]} 2. Nf3 {[%clk 01:25:53]} {[%emt 00:00:08]} e6 {[%clk 01:31:16]}
{[%emt 00:00:07]} 3. d4 {[%clk 01:26:21]} {[%emt 00:00:03]} cxd4 {[%clk
01:31:37]} {[%emt 00:00:08]} 4. Nxd4 {[%clk 01:26:48]} {[%emt 00:00:04]} a6
{[%clk 01:31:52]} {[%emt 00:00:09]} 5. Bd3 {[%clk 01:26:42]} {[%emt 00:00:41]}
Qc7 {[%clk 01:31:52]} {[%emt 00:00:30]} 6. O-O {[%clk 01:27:01]} {[%emt
00:00:10]} Nf6 {[%clk 01:31:54]} {[%emt 00:00:28]} 7. Qe2 {[%clk 01:26:59]}
{[%emt 00:00:32]} d6 {[%clk 01:31:51]} {[%emt 00:00:33]} 8. f4 {[%clk
01:25:57]} {[%emt 00:01:32]} Nbd7 {[%clk 01:31:50]} {[%emt 00:00:31]} 9. c4
{[%clk 01:25:22]} {[%emt 00:01:06]} b6 {[%clk 01:31:07]} {[%emt 00:01:12]} 10.
Nc3 {[%clk 01:24:49]} {[%emt 00:01:02]} Bb7 {[%clk 01:30:06]} {[%emt 00:01:31]}
11. Bd2 {[%clk 01:16:43]} {[%emt 00:08:37]} Nc5 {[%clk 01:25:04]} {[%emt
00:05:32]} 12. Bc2 {[%clk 01:14:22]} {[%emt 00:02:52]} g6 {[%clk 01:23:19]}
{[%emt 00:02:14]} 13. e5 {[%clk 01:05:27]} {[%emt 00:09:25]} Nh5 {[%clk
01:16:24]} {[%emt 00:07:24]} 14. Nd5 {[%clk 00:54:49]} {[%emt 00:11:09]} Bxd5
{[%clk 01:04:59]} {[%emt 00:11:56]} 15. cxd5 {[%clk 00:55:05]} {[%emt
00:00:14]} dxe5 {[%clk 01:03:19]} {[%emt 00:02:10]} 16. fxe5 {[%clk 00:55:15]}
{[%emt 00:00:20]} exd5 {[%clk 01:00:01]} {[%emt 00:03:48]} 17. e6 {[%clk
00:51:38]} {[%emt 00:04:07]} f6 {[%clk 00:42:37]} {[%emt 00:17:53]} 18. g4
{[%clk 00:38:27]} {[%emt 00:13:41]} Qe5 {[%clk 00:42:02]} {[%emt 00:01:04]} 19.
Qf2 {[%clk 00:38:55]} {[%emt 00:00:02]} Ne4 {[%clk 00:38:57]} {[%emt 00:03:35]}
20. Bxe4 {[%clk 00:34:17]} {[%emt 00:05:09]} Bc5 {[%clk 00:38:50]} {[%emt
00:00:37]} 21. Be3 {[%clk 00:12:15]} {[%emt 00:22:32]} Qxe4 {[%clk 00:38:29]}
{[%emt 00:00:50]} 22. gxh5 {[%clk 00:09:18]} {[%emt 00:03:28]} Bxd4 {[%clk
00:36:48]} {[%emt 00:02:11]} 23. Bxd4 {[%clk 00:09:26]} {[%emt 00:00:21]} gxh5
{[%clk 00:36:57]} {[%emt 00:00:20]} 24. h3 {[%clk 00:08:04]} {[%emt 00:01:53]}
O-O-O {[%clk 00:29:04]} {[%emt 00:08:23]} 25. Kh2 {[%clk 00:07:45]} {[%emt
00:00:48]} Rhg8 {[%clk 00:28:06]} {[%emt 00:01:28]} 26. Rae1 {[%clk 00:07:50]}
{[%emt 00:00:26]} Qd3 {[%clk 00:27:11]} {[%emt 00:01:25]} 27. e7 {[%clk
00:08:06]} {[%emt 00:00:14]} 1-0

[Event "SS Manhem Chess Week 2019 GM and IM tournaments"]
[Site "Molnlycke kulturhus, Biblioteksgatan 2, Molnlycke, Sweden"]
[Date "2019.08.14"]
[Round "6.6"]
[White "Fries-Nielsen, Jens Ove"]
[Black "Borsuk, Konstantin"]
[Result "0-1"]
[WhiteElo "2351"]
[BlackElo "2372"]
[TimeControl "90 minutes for 40 moves + 30 minutes for the rest of the game + 30 seconds per move from move one."]

1. d4 {[%emt 0:00:22]} Nf6 {[%emt 0:00:00]} 2. Nf3 {[%emt 0:01:03]} e6 {
[%emt 0:00:00]} 3. e3 {[%emt 0:00:12]} b6 {[%emt 0:00:13]} 4. Bd3 {[%emt 0:00:
15]} Bb7 {[%emt 0:01:14]} 5. O-O {[%emt 0:00:32]} c5 {[%emt 0:00:49]} 6. c3 {
[%emt 0:03:45]} Be7 {[%emt 0:05:58]} 7. Nbd2 {[%emt 0:00:34]} cxd4 {[%emt 0:04:
53]} 8. cxd4 {[%emt 0:03:58]} Ba6 {[%emt 0:09:36]} 9. Bxa6 {[%emt 0:04:13]}
Nxa6 {[%emt 0:00:41]} 10. a3 {[%emt 0:02:52]} O-O {[%emt 0:00:21]} 11. e4 {
[%emt 0:10:59]} d5 {[%emt 0:05:57]} 12. e5 {[%emt 0:00:03]} Nd7 {[%emt 0:00:21]
} 13. Qe2 {[%emt 0:02:35]} Nc7 {[%emt 0:03:44]} 14. Nb1 {[%emt 0:06:13]} b5 {
[%emt 0:03:13]} 15. Nc3 {[%emt 0:00:44]} b4 {[%emt 0:10:03]} 16. axb4 {[%emt 0:
01:17]} Bxb4 {[%emt 0:00:15]} 17. Qd3 {[%emt 0:03:04]} Be7 {[%emt 0:02:51]} 18.
Bd2 {[%emt 0:03:42]} Qb8 {[%emt 0:06:10]} 19. Ng5 {[%emt 0:04:09]} Bxg5 {
[%emt 0:03:42]} 20. Bxg5 {[%emt 0:00:04]} Qb7 {[%emt 0:02:54]} 21. Be7 {
[%emt 0:04:42]} Rfc8 {[%emt 0:00:46]} 22. Ra3 {[%emt 0:05:08]} Ne8 {[%emt 0:01:
24]} 23. f4 {[%emt 0:23:08]} Nxe5 {[%emt 0:04:42]} 24. fxe5 {[%emt 0:00:12]}
Qxe7 {[%emt 0:00:06]} 25. Ne2 {[%emt 0:01:42]} Rab8 {[%emt 0:01:30]} 26. Qd2 {
[%emt 0:00:41]} Rc7 {[%emt 0:06:16]} 27. Rh3 {[%emt 0:05:58]} f5 {[%emt 0:03:
44]} 28. Nf4 {[%emt 0:01:29]} Rcb7 {[%emt 0:01:01]} 29. Qe2 {[%emt 0:01:55]} g6
{[%emt 0:02:07]} 30. Nd3 {[%emt 0:02:24]} Rb3 {[%emt 0:03:15]} 31. Qd2 {
[%emt 0:01:24]} Rc8 {[%emt 0:01:20]} 32. Qd1 {[%emt 0:00:54]} Rb7 {[%emt 0:01:
05]} 33. Rf4 {[%emt 0:01:04]} Rbc7 {[%emt 0:06:31]} 34. Rg3 {[%emt 0:01:21]}
Ng7 {[%emt 0:00:48]} 35. h3 {[%emt 0:00:11]} g5 {[%emt 0:02:02]} 36. Rf1 {
[%emt 0:00:04]} f4 {[%emt 0:00:14]} 37. Rgf3 {[%emt 0:00:46]} Nf5 {[%emt 0:00:
18]} 38. Nf2 {[%emt 0:00:23]} Qb4 {[%emt 0:02:46]} 39. Rd3 {[%emt 0:01:01]} Ne3
{[%emt 0:02:15]} 40. Rxe3 {[%emt 0:00:12]} fxe3 {[%emt 0:00:04]} 41. Ng4 {
[%emt 0:30:08]} Rc1 {[%emt 0:33:46]} 42. Nf6+ {[%emt 0:00:00]} Kh8 {[%emt 0:00:
00]} 43. Qxc1 {[%emt 0:00:00]} Rxc1 {[%emt 0:00:00]} 44. Rxc1 {[%emt 0:00:00]}
e2 {[%emt 0:00:00]} 45. Rc8+ {[%emt 0:00:00]} Kg7 {[%emt 0:00:00]} 0-1

[Event "SS Manhem Chess Week 2019 GM and IM tournaments"]
[Site "Molnlycke kulturhus, Biblioteksgatan 2, Molnlycke, Sweden"]
[Date "2019.08.14"]
[Round "6.7"]
[White "Jacobsen, Mikkel Manosri"]
[Black "Hill, Alistair"]
[Result "1-0"]
[WhiteElo "2343"]
[BlackElo "2224"]
[TimeControl "90 minutes for 40 moves + 30 minutes for the rest of the game + 30 seconds per move from move one."]

1. Nf3 {[%emt 0:00:00]} Nf6 {[%emt 0:00:00]} 2. e3 {[%emt 0:00:50]} g6 {
[%emt 0:00:00]} 3. c4 {[%emt 0:00:05]} Bg7 {[%emt 0:00:11]} 4. d4 {[%emt 0:00:
03]} O-O {[%emt 0:00:20]} 5. Be2 {[%emt 0:00:04]} c5 {[%emt 0:01:05]} 6. d5 {
[%emt 0:00:15]} d6 {[%emt 0:03:21]} 7. Nc3 {[%emt 0:00:06]} e6 {[%emt 0:01:40]}
8. O-O {[%emt 0:00:14]} Re8 {[%emt 0:05:04]} 9. Nd2 {[%emt 0:00:06]} Na6 {
[%emt 0:03:26]} 10. e4 {[%emt 0:03:06]} Nc7 {[%emt 0:03:40]} 11. a4 {[%emt 0:
00:34]} h5 {[%emt 0:19:02]} 12. h3 {[%emt 0:05:59]} Nh7 {[%emt 0:14:31]} 13.
Ra3 {[%emt 0:03:14]} Na6 {[%emt 0:02:23]} 14. Kh1 {[%emt 0:09:27]} e5 {[%emt 0:
00:27]} 15. Nf3 {[%emt 0:01:01]} Nb4 {[%emt 0:00:38]} 16. a5 {[%emt 0:03:21]}
Bd7 {[%emt 0:01:41]} 17. Bd2 $11 {[%emt 0:04:58]} f5 {[%emt 0:09:04]} 18. exf5
{[%emt 0:01:23]} Bxf5 {[%emt 0:00:03]} 19. Ne1 {[%emt 0:05:50]} e4 {[%emt 0:06:
10]} 20. Qc1 {[%emt 0:01:03]} a6 {[%emt 0:06:28]} 21. Nd1 {[%emt 0:06:42]} Be5
{[%emt 0:01:38]} 22. Ne3 {[%emt 0:06:17]} Bd7 {[%emt 0:00:06]} 23. f4 {[%emt 0:
07:11]} exf3 {[%emt 0:00:07]} 24. Nxf3 {[%emt 0:00:04]} Bg7 {[%emt 0:00:16]}
25. Bd1 {[%emt 0:01:29]} Re4 {[%emt 0:04:50]} 26. Rb3 {[%emt 0:07:39]} Qe8 {
[%emt 0:06:05]} 27. Bxb4 {[%emt 0:03:14]} cxb4 {[%emt 0:01:28]} 28. Bc2 {
[%emt 0:00:06]} Bh6 {[%emt 0:02:03]} 29. Bxe4 {[%emt 0:02:47]} Qxe4 {[%emt 0:
00:02]} 30. Qb1 {[%emt 0:00:08]} Qe8 {[%emt 0:01:05]} 31. Re1 {[%emt 0:00:06]}
Qf7 {[%emt 0:01:41]} 32. Nh4 {[%emt 0:02:20]} Kg7 {[%emt 0:03:04]} 33. Rxb4 {
[%emt 0:01:57]} Re8 {[%emt 0:00:38]} 34. Rf1 {[%emt 0:01:13]} Nf6 {[%emt 0:00:
27]} 35. Nd1 {[%emt 0:00:54]} Bc8 {[%emt 0:02:11]} 36. Qd3 {[%emt 0:01:25]} Bg5
{[%emt 0:00:30]} 37. Qg3 {[%emt 0:01:19]} Bxh4 {[%emt 0:01:34]} 38. Qxh4 {
[%emt 0:00:02]} Re5 {[%emt 0:01:01]} 39. Rb3 {[%emt 0:01:21]} Qe7 {[%emt 0:00:
30]} 40. Re3 {[%emt 0:02:17]} Bf5 {[%emt 0:00:51]} 41. Rfe1 {[%emt 0:30:34]}
Rxe3 {[%emt 0:01:40]} 42. Nxe3 {[%emt 0:00:00]} Be4 {[%emt 0:00:36]} 43. Qf4 {
[%emt 0:00:00]} h4 {[%emt 0:02:13]} 44. Qxh4 {[%emt 0:00:00]} Qe5 {[%emt 0:00:
06]} 45. Ng4 {[%emt 0:00:00]} 1-0